bitfinex-derivatives/quotes_SOLF0:USTF0_20250125
["timestamp","ask_amount","ask_price","bid_price","bid_amount"]
[1737816965404,5.90940956,250.31,250.14,1.53105574]
[1737816965605,5.90940956,250.31,250.23,5.90940956]
[1737816966309,5.90940956,250.31,250.23,9.90620956]
[1737816966310,3.9959,250.29,250.23,9.90620956]
[1737816966610,3.9959,250.29,250.24,0.03061248]
[1737816966808,0.02899701,250.3,250.27,5.90940956]
[1737816968011,0.02899701,250.3,250.27,9.90560956]
[1737816968811,0.02899701,250.3,250.27,5.90940956]
[1737816969011,0.02899701,250.3,250.29,5.90940956]
[1737816970514,5.90940956,250.43,250.29,5.90940956]
[1737816970813,3.9949,250.36,250.31,5.90940956]
[1737816971411,3.9949,250.36,250.31,5.93813573]
[1737816972411,5.90940956,250.39,250.31,5.93813573]
[1737816972711,5.90940956,250.41,250.33,5.90940956]
[1737816973113,5.90940956,250.41,250.34,0.02603242]
[1737816973611,3.9944,250.39,250.34,0.02603242]
[1737816973813,3.9944,250.39,250.35,5.90940956]
[1737816974006,5.90940956,250.43,250.35,5.90940956]
[1737816974209,5.90940956,250.43,250.36,3.9948]
[1737816974609,5.90940956,250.45,250.37,5.90940956]
[1737816974914,3.9936,250.44,250.39,5.90940956]
[1737816975814,3.9939,250.42,250.38,0.02755918]
[1737816976309,5.90940956,250.45,250.38,0.02755918]
[1737816976615,3.994,250.41,250.38,0.02755918]
[1737816977212,3.9938,250.43,250.38,0.02755918]
[1737816977415,5.90940956,250.45,250.38,0.02755918]
[1737816977815,3.9943,250.39,250.38,0.02755918]
[1737816979616,5.90940956,250.45,250.38,0.02755918]
[1737816980215,3.9937,250.43,250.38,0.02755918]
[1737816980418,5.90940956,250.45,250.38,5.93696874]
[1737816980919,3.9942,250.4,250.38,5.93696874]
[1737816983821,5.90940956,250.45,250.38,5.93696874]
[1737816984116,5.90940956,250.47,250.38,9.93146874]
[1737816985123,3.9937,250.43,250.38,9.93146874]
[1737816985628,3.9934,250.45,250.4,5.90940956]
[1737816987122,3.9934,250.45,250.41,5.90940956]
[1737816988117,7.00193968,250.48,250.41,5.90940956]
[1737816988326,3.9941,250.4,250.35,5.90940956]
[1737816988824,4.02134828,250.4,250.35,5.9351358]
[1737816989025,3.9943,250.39,250.37,5.90940956]
[1737816989223,0.02724828,250.4,250.35,5.9351358]
[1737816991221,3.9944,250.39,250.35,5.9351358]
[1737816993030,0.02724828,250.4,250.37,9.90400956]
[1737816993630,0.02724828,250.4,250.39,5.90940956]
[1737816995229,0.02724828,250.4,250.39,9.90370956]
[1737816997632,3.9934,250.45,250.4,3.994]
[1737816997833,3.9934,250.45,250.41,5.90940956]
[1737816998431,3.9934,250.45,250.41,9.90340956]
[1737816999830,7.00193968,250.48,250.43,5.90940956]
[1737817000030,3.9932,250.47,250.43,9.90300956]
[1737817002232,3.9932,250.46,250.41,9.90320956]
[1737817002634,3.9932,250.46,250.41,5.90940956]
[1737817003235,10.99493968,250.48,250.43,9.90310956]
[1737817003434,7.00193968,250.48,250.43,9.90310956]
[1737817003934,5.90940956,250.49,250.43,5.90940956]
[1737817004136,3.9932,250.47,250.43,5.90940956]
[1737817004928,3.9932,250.47,250.43,9.90310956]
[1737817005543,3.9929,250.49,250.43,9.90310956]
[1737817005839,5.90940956,250.55,250.47,5.90940956]
[1737817006239,5.90940956,250.55,250.48,0.02921005]
[1737817006639,3.9922,250.53,250.48,0.02921005]
[1737817007339,5.90940956,250.59,250.51,5.90940956]
[1737817007540,5.90940956,250.59,250.53,5.90940956]
[1737817007835,3.9916,250.57,250.53,5.90940956]
[1737817008433,3.991,250.6,250.53,5.90940956]
[1737817008833,5.90940956,250.61,250.53,5.90940956]
[1737817009038,3.9911,250.59,250.54,3.9918]
[1737817009241,3.9911,250.59,250.53,5.90940956]
[1737817009638,3.9907,250.62,250.55,9.90110956]
[1737817009940,5.90940956,250.63,250.55,5.90940956]
[1737817010440,9.90000956,250.63,250.55,5.90940956]
[1737817010640,5.90940956,250.63,250.55,5.90940956]
[1737817010843,5.90940956,250.63,250.56,5.90940956]
[1737817011641,5.90940956,250.61,250.54,5.90940956]
[1737817012141,0.02977602,250.6,250.55,0.02761878]
[1737817013142,3.9911,250.59,250.56,5.90940956]
[1737817013935,3.9911,250.59,250.55,0.02761878]
[1737817013936,0.02977602,250.6,250.58,9.90070956]
[1737817014441,0.02977602,250.6,250.56,5.90940956]
[1737817014742,4.02077602,250.6,250.56,5.90940956]
[1737817014938,0.02977602,250.6,250.56,5.90940956]
[1737817015140,0.02977602,250.6,250.55,0.02761878]
[1737817015341,3.9913,250.58,250.55,0.02761878]
[1737817017341,0.02977602,250.6,250.56,9.90090956]
[1737817017542,0.02977602,250.6,250.56,5.90940956]
[1737817018738,0.02977602,250.6,250.55,0.02761878]
[1737817019835,3.9914,250.58,250.55,0.02761878]
[1737817020043,0.02977602,250.6,250.55,0.02761878]
[1737817020545,3.9913,250.58,250.55,0.02761878]
[1737817021641,0.02977602,250.6,250.56,5.90940956]
[1737817022447,0.02977602,250.6,250.58,3.9911]
[1737817023445,0.02977602,250.6,250.59,3.9911]
[1737817024338,3.9902,250.66,250.58,5.90940956]
[1737817024538,3.9902,250.66,250.6,5.90940956]
[1737817024737,5.90940956,250.69,250.62,5.90940956]
[1737817024941,5.90940956,250.69,250.63,3.9904]
[1737817025142,1.3193,250.79,250.62,5.90940956]
[1737817025143,5.90940956,250.71,250.62,5.90940956]
[1737817025342,3.9891,250.72,250.65,5.90940956]
[1737817026147,3.9891,250.72,250.66,3.9899]
[1737817027149,3.9896,250.69,250.64,0.02655728]
[1737817027347,5.90940956,250.7,250.64,0.02655728]
[1737817027547,5.90940956,250.7,250.61,5.90940956]
[1737817027749,5.90940956,250.7,250.64,0.02956743]
[1737817028250,3.9897,250.69,250.64,0.02956743]
[1737817028449,5.90940956,250.7,250.64,0.02956743]
[1737817030153,3.9898,250.68,250.64,0.02956743]
[1737817031552,3.9885,250.76,250.7,3.9893]
[1737817032654,4.01816551,250.76,250.7,4.01762365]
[1737817033055,3.9886,250.75,250.7,4.01762365]
[1737817033255,3.9886,250.75,250.71,5.90940956]
[1737817033954,0.02966551,250.76,250.71,5.90940956]
[1737817035351,0.02966551,250.76,250.7,0.02832365]
[1737817035551,3.9888,250.74,250.7,0.02832365]
[1737817036056,0.02966551,250.76,250.7,0.02832365]
[1737817037057,0.02966551,250.76,250.71,9.89860956]
[1737817037262,0.02966551,250.76,250.73,5.90940956]
[1737817037863,0.02966551,250.76,250.74,3.9887]
[1737817038062,0.02966551,250.76,250.73,5.90940956]
[1737817038563,0.02966551,250.76,250.75,3.9886]
[1737817040059,0.02966551,250.76,250.75,9.89800956]
[1737817040464,3.9875,250.82,250.77,3.9882]
[1737817040764,5.90940956,250.86,250.78,5.90940956]
[1737817041464,3.9872,250.84,250.79,3.9879]
[1737817041663,5.90940956,250.88,250.8,5.90940956]
[1737817041963,3.9865,250.88,250.83,3.9873]
[1737817042167,5.90940956,250.9,250.82,5.90940956]
[1737817042673,3.9866,250.88,250.83,3.9873]
[1737817042965,5.90940956,250.9,250.82,5.90940956]
[1737817043166,5.90940956,250.86,250.79,0.03031734]
[1737817043667,5.90940956,250.9,250.82,5.90940956]
[1737817044168,5.90940956,250.9,250.83,0.02575618]
[1737817044369,5.90940956,250.88,250.83,0.02575618]
[1737817045169,5.90940956,250.86,250.83,0.02575618]
[1737817045363,9.89650956,250.84,250.83,0.02575618]
[1737817045667,5.90940956,250.84,250.76,5.90940956]
[1737817046370,3.9878,250.8,250.76,9.89780956]
[1737817046670,0.02686153,250.81,250.76,9.89780956]
[1737817047270,0.02686153,250.81,250.76,5.90940956]
[1737817047475,0.02686153,250.81,250.78,9.89750956]
[1737817048469,0.02686153,250.81,250.8,3.9878]
[1737817049073,5.90940956,250.9,250.8,5.90940956]
[1737817049268,9.89560956,250.9,250.85,3.9869]
[1737817049572,5.90940956,250.9,250.85,3.9869]
[1737817049770,3.9864,250.89,250.83,9.89660956]
[1737817049969,5.90940956,250.88,250.83,3.9872]
[1737817050363,5.90940956,250.88,250.83,4.01385905]
[1737817051167,3.9867,250.87,250.83,4.01385905]
[1737817051367,5.90940956,250.88,250.83,4.01385905]
[1737817051567,5.90940956,250.92,250.83,5.93606861]
[1737817051775,3.9862,250.9,250.85,3.9869]
[1737817052072,5.90940956,250.88,250.83,0.02665905]
[1737817052270,5.90940956,250.86,250.77,5.90940956]
[1737817052471,3.987,250.85,250.8,3.9877]
[1737817053072,3.9868,250.87,250.82,3.9874]
[1737817053668,0.02968035,250.87,250.82,0.02638377]
[1737817053874,0.02968035,250.87,250.84,3.9871]
[1737817054368,0.02968035,250.87,250.83,5.90940956]
[1737817054573,0.02968035,250.87,250.85,3.9869]
[1737817055074,0.02968035,250.87,250.86,3.9868]
[1737817055367,5.90940956,250.96,250.85,5.90940956]
[1737817055673,2.6427,251.0,250.81,2.58]
[1737817055674,2.6427,251.0,250.87,9.91034012]
[1737817056574,2.6427,251.0,250.92,3.9859]
[1737817057170,3.9853,250.96,250.91,0.02762963]
[1737817057370,2.6427,251.0,250.91,0.02762963]
[1737817058477,3.9854,250.95,250.91,0.02762963]
[1737817058976,3.9859,250.92,250.91,0.02762963]
[1737817066288,3.9859,250.92,250.91,2.963e-05]
[1737817067589,9.9393579,250.94,250.73,9.91034012]
[1737817067792,9.91034012,250.94,250.74,1.3005]
[1737817068084,9.91034012,250.9,250.74,1.3005]
[1737817068486,3.9875,250.82,250.79,0.03029788]
[1737817069394,0.02999714,250.85,250.79,0.03029788]
[1737817070097,3.9873,250.83,250.79,0.03029788]
[1737817070488,0.02999714,250.85,250.79,0.03029788]
[1737817072498,3.9875,250.82,250.79,0.03029788]
[1737817072699,0.02999714,250.85,250.73,1.87536619]
[1737817073295,0.02999714,250.85,250.69,9.91034012]
[1737817073495,9.91034012,250.86,250.69,9.91034012]
[1737817073897,3.9882,250.78,250.75,0.02876717]
[1737817074097,0.03069752,250.8,250.75,0.02876717]
[1737817075298,3.9884,250.76,250.75,0.02876717]
[1737817079701,0.03069752,250.8,250.75,0.02876717]
[1737817080295,3.9882,250.78,250.75,0.02876717]
[1737817080497,0.03069752,250.8,250.75,0.02876717]
[1737817081899,3.9884,250.76,250.75,0.02876717]
[1737817083002,9.752e-05,250.8,250.75,6.38241313]
[1737817083307,9.752e-05,250.8,250.79,6.35364596]
[1737817083503,9.752e-05,250.8,250.79,10.34154596]
[1737817084509,3.986,250.91,250.84,3.9871]
[1737817084703,3.986,250.91,250.85,6.35364596]
[1737817085606,4.01210906,250.91,250.85,6.37941297]
[1737817085807,4.01210906,250.91,250.85,10.36641297]
[1737817086106,0.02610906,250.91,250.9,6.35364596]
[1737817087706,0.02610906,250.91,250.89,3.9863]
[1737817088406,0.02610906,250.91,250.87,3.9866]
[1737817089405,0.02610906,250.91,250.86,9.91033043]
[1737817091208,0.02610906,250.91,250.89,3.9862]
[1737817091610,3.9141,251.0,250.9,11.42370203]
[1737817091816,3.9141,251.0,250.94,4.88360683]
[1737817092104,1.3027,251.0,250.95,11.42370203]
[1737817092313,1.3027,251.0,250.96,11.42370203]
[1737817092502,3.9849,250.98,250.97,11.42370203]
[1737817094717,3.9851,250.97,250.95,0.03024937]
[1737817094906,3.9851,250.97,250.96,4.11762284]
[1737817095608,61.88291067,251.11,250.96,4.11762284]
[1737817095807,9.91033043,251.07,250.97,4.11762284]
[1737817096008,9.91033043,251.07,251.01,0.03060362]
[1737817096203,3.984,251.04,251.02,4.11762284]
[1737817096502,3.984,251.04,251.01,0.03060362]
[1737817096703,9.91033043,251.07,251.02,4.11297702]
[1737817096909,13.89383043,251.07,251.03,4.11210088]
[1737817097109,13.89383043,251.07,251.01,4.01500362]
[1737817097312,13.89383043,251.07,251.02,4.11171663]
[1737817097512,3.984,251.04,251.01,0.03060362]
[1737817097806,9.91033043,251.07,251.01,0.03060362]
[1737817099315,3.9842,251.03,251.01,0.03060362]
[1737817100417,9.91033043,251.03,250.86,9.91033043]
[1737817100615,9.91033043,250.99,250.87,4.11296017]
[1737817100909,3.9857,250.93,250.88,4.11296017]
[1737817101115,3.9857,250.93,250.89,4.11296017]
[1737817101307,3.9857,250.93,250.9,4.11296017]
[1737817101613,3.9857,250.93,250.91,4.11296017]
[1737817101810,3.9857,250.93,250.92,4.11296017]
[1737817102110,0.02661661,250.94,250.92,4.11296017]
[1737817102314,0.02661661,250.94,250.88,4.01168489]
[1737817102615,0.02661661,250.94,250.89,4.07472112]
[1737817102813,0.02661661,250.94,250.9,4.07472112]
[1737817103113,0.02661661,250.94,250.91,4.07472112]
[1737817103313,0.02661661,250.94,250.92,4.07472112]
[1737817103514,0.02661661,250.94,250.88,4.01168489]
[1737817103714,0.02661661,250.94,250.89,4.07455723]
[1737817103917,0.02661661,250.94,250.91,3.986]
[1737817104117,0.02661661,250.94,250.92,4.07455723]
[1737817104417,0.02661661,250.94,250.91,3.986]
[1737817104418,0.02661661,250.94,250.93,4.07455723]
[1737817106017,0.02661661,250.94,250.93,4.07333548]
[1737817110129,0.02661661,250.94,250.93,4.07036335]
[1737817110625,0.02661661,250.94,250.93,8.05606335]
[1737817111625,0.02661661,250.94,250.93,4.06934162]
[1737817112529,4.01221661,250.94,250.88,0.02518489]
[1737817112829,0.02661661,250.94,250.88,4.01168489]
[1737817114325,0.02661661,250.94,250.89,3.9863]
[1737817115131,4.01221661,250.94,250.89,3.9863]
[1737817116133,6.34317125,250.91,250.88,0.02518489]
[1737817116828,3.9863,250.89,250.88,0.02518489]
[1737817117031,6.34317125,250.91,250.88,0.02518489]
[1737817118333,3.9862,250.9,250.88,0.02518489]
[1737817118734,3.986,250.92,250.88,0.02518489]
[1737817119725,3.9858,250.93,250.88,4.01168489]
[1737817120026,0.02661661,250.94,250.88,0.02518489]
[1737817120229,0.02661661,250.94,250.89,3.9863]
[1737817121034,3.9858,250.93,250.88,4.01168489]
[1737817121531,0.02661661,250.94,250.88,6.36835614]
[1737817121732,0.02661661,250.94,250.91,3.986]
[1737817123838,4.01221661,250.94,250.89,3.9863]
[1737817124138,0.02661661,250.94,250.88,0.02518489]
[1737817124538,0.02661661,250.94,250.9,3.9861]
[1737817124834,0.02661661,250.94,250.88,6.36835614]
[1737817125040,4.01231661,250.94,250.89,3.9863]
[1737817126038,0.02661661,250.94,250.9,3.9861]
[1737817126237,0.02661661,250.94,250.88,6.36835614]
[1737817126440,0.02661661,250.94,250.92,3.9859]
[1737817127137,0.02661661,250.94,250.9,6.34317125]
[1737817127335,0.02661661,250.94,250.91,3.986]
[1737817128335,0.02661661,250.94,250.92,3.9858]
[1737817128835,0.02661661,250.94,250.93,3.9857]
[1737817132047,0.02661661,250.94,250.91,3.9859]
[1737817132239,0.02661661,250.94,250.9,6.34317125]
[1737817133144,0.02661661,250.94,250.92,3.9859]
[1737817133744,0.02661661,250.94,250.92,10.32907125]
[1737817134446,0.02661661,250.94,250.93,3.9857]
[1737817140752,0.02661661,250.94,250.91,3.9859]
[1737817140949,0.02661661,250.94,250.9,6.34317125]
[1737817141147,0.02661661,250.94,250.92,6.34317125]
[1737817142253,0.02661661,250.94,250.93,3.9857]
[1737817146350,7.59777125,251.05,250.98,3.9848]
[1737817147548,7.59777125,251.05,250.99,0.02878603]
[1737817148052,3.9842,251.03,250.99,0.02878603]
[1737817148748,6.34317125,251.05,250.99,0.02878603]
[1737817148947,3.46228649,251.06,251.0,6.34317125]
[1737817149349,3.46228649,251.06,250.99,0.02878603]
[1737817150052,3.9836,251.07,251.0,3.9845]
[1737817150253,3.9836,251.07,250.99,0.02878603]
[1737817150853,6.34317125,251.04,250.99,0.02878603]
[1737817152151,3.9842,251.03,250.99,0.02878603]
[1737817152454,6.34317125,251.04,250.99,0.02878603]
[1737817152657,6.34317125,251.06,250.99,0.02878603]
[1737817152858,10.32717125,251.04,250.99,4.01348603]
[1737817153048,6.34317125,251.04,250.99,0.02878603]
[1737817153456,10.32717125,251.04,250.99,0.02878603]
[1737817153656,3.984,251.04,250.99,0.02878603]
[1737817153858,6.34317125,251.06,250.99,0.02878603]
[1737817154957,6.34317125,251.1,251.02,6.34317125]
[1737817155159,6.34317125,251.15,251.06,6.34317125]
[1737817155958,3.9824,251.14,251.06,6.34317125]
[1737817156561,3.9826,251.13,251.07,3.9833]
[1737817156956,6.34317125,251.15,251.07,0.02767263]
[1737817157157,6.34317125,251.15,251.08,3.9832]
[1737817157863,10.32537125,251.15,251.09,3.9831]
[1737817158362,6.34317125,251.15,251.07,0.02767263]
[1737817158664,10.32547125,251.15,251.07,0.02767263]
[1737817159267,3.9827,251.12,251.07,4.01107263]
[1737817162366,6.34317125,251.13,251.07,0.02767263]
[1737817162566,3.983,251.1,251.07,0.02767263]
[1737817164768,3.9829,251.11,251.07,0.02767263]
[1737817165064,3.9829,251.11,251.07,4.01117263]
[1737817166065,6.34317125,251.15,251.08,6.34317125]
[1737817166271,3.9827,251.13,251.08,6.34317125]
[1737817166973,3.9824,251.14,251.1,3.9829]
[1737817168167,6.34317125,251.17,251.08,6.34317125]
[1737817168373,3.9822,251.16,251.11,3.9828]
[1737817168871,3.9822,251.15,251.11,3.9828]
[1737817169272,6.34317125,251.13,251.07,4.01107263]
[1737817169963,6.34317125,251.13,251.07,0.02767263]
[1737817170573,6.34317125,251.15,251.07,4.01107263]
[1737817170772,6.34317125,251.17,251.08,6.34317125]
[1737817171576,6.34317125,251.17,251.11,3.9829]
[1737817173075,3.9822,251.16,251.11,3.9829]
[1737817177078,6.34317125,251.17,251.08,6.34317125]
[1737817177279,3.9826,251.13,251.08,3.9833]
[1737817178375,3.9828,251.12,251.08,3.9833]
[1737817178578,6.34317125,251.15,251.07,0.02767263]
[1737817179382,6.34317125,251.15,251.07,4.01117263]
[1737817180974,3.9829,251.12,251.07,4.01117263]
[1737817181486,3.9829,251.11,251.07,4.01117263]
[1737817184578,3.9829,251.11,251.08,3.9833]
[1737817185084,3.9827,251.12,251.08,3.9833]
[1737817187282,3.9833,251.08,251.07,0.02767263]
[1737817191786,6.34317125,251.11,251.07,0.02767263]
[1737817191987,3.9832,251.1,251.07,0.02767263]
[1737817195290,10.32587125,251.13,251.07,4.01107263]
[1737817195986,11.99,251.07,250.84,11.55523173]
[1737817196291,6.34317125,251.01,250.88,6.34317125]
[1737817197189,0.02782563,250.97,250.92,0.02907558]
[1737817198895,0.02782563,250.97,250.92,4.01487558]
[1737817199785,0.02782563,250.97,250.93,3.9856]
[1737817200594,0.02782563,250.97,250.92,0.02907558]
[1737817200991,0.02782563,250.97,250.93,3.9856]
[1737817201291,0.02782563,250.97,250.94,6.34317125]
[1737817202193,0.02782563,250.97,250.95,3.9853]
[1737817205299,6.37099688,250.97,250.92,0.02907558]
[1737817205506,6.34317125,250.94,250.92,0.02907558]
[1737817205799,10.32877125,250.94,250.92,0.02907558]
[1737817206897,3.9862,250.9,250.83,3.9872]
[1737817207097,6.34317125,250.87,250.83,3.9872]
[1737817207501,6.34317125,250.89,250.85,3.9869]
[1737817207703,6.34317125,250.89,250.8,6.34317125]
[1737817208000,0.02919804,250.87,250.82,0.02555235]
[1737817208300,0.02919804,250.87,250.85,3.987]
[1737817208492,0.02919804,250.87,250.86,6.34317125]
[1737817208894,6.34317125,250.95,250.86,6.34317125]
[1737817209601,6.34317125,250.99,250.9,6.34317125]
[1737817209801,6.34317125,251.01,250.94,6.34317125]
[1737817210096,0.02991525,251.0,250.95,0.03029367]
[1737817211002,0.02991525,251.0,250.98,3.9848]
[1737817212206,6.34317125,251.1,250.99,6.34317125]
[1737817212506,6.34317125,251.12,251.02,6.34317125]
[1737817212704,6.34317125,251.12,251.05,6.34317125]
[1737817212904,6.34317125,251.12,251.09,3.9831]
[1737817213305,6.34317125,251.14,251.09,3.9831]
[1737817213508,6.34317125,251.18,251.08,0.02515297]
[1737817213706,22.8747528,251.22,251.12,6.34317125]
[1737817213899,16.53158155,251.22,251.16,6.34317125]
[1737817214205,6.34317125,251.28,251.2,6.34317125]
[1737817214404,6.34317125,251.24,251.16,6.34317125]
[1737817214601,5.51052718,251.32,251.21,0.030378]
[1737817214805,6.34317125,251.22,251.21,0.030378]
[1737817215011,6.34317125,251.24,251.21,0.030378]
[1737817215208,6.34317125,251.22,251.21,0.030378]
[1737817215509,6.34317125,251.22,251.08,6.34317125]
[1737817215710,9.89716659,251.19,251.05,2.66]
[1737817216106,3.9818,251.18,251.09,3.9831]
[1737817216309,9.89716659,251.19,251.03,9.89716659]
[1737817216708,0.02563491,251.14,251.08,0.02893061]
[1737817217111,9.89716659,251.31,251.12,9.89716659]
[1737817217304,3.98,251.3,251.16,9.89716659]
[1737817217509,9.89716659,251.31,251.16,9.89716659]
[1737817218011,3.9806,251.26,251.16,13.87916659]
[1737817218211,9.89716659,251.31,251.21,0.02841398]
[1737817218913,1.3059,251.33,251.21,0.02841398]
[1737817219313,3.9799,251.3,251.21,0.02841398]
[1737817219515,1.3059,251.33,251.21,0.02841398]
[1737817219808,11.15736659,251.35,251.21,0.02841398]
[1737817220213,3.9797,251.31,251.22,3.981]
[1737817220417,9.89716659,251.35,251.21,0.02841398]
[1737817221414,9.89716659,251.31,251.21,0.02841398]
[1737817221613,9.89716659,251.31,251.13,2.6656]
[1737817221614,9.89716659,251.27,251.13,2.6656]
[1737817221814,9.89716659,251.27,251.23,0.02542664]
[1737817222011,9.89716659,251.27,251.13,6.6481]
[1737817222216,9.89716659,251.27,251.22,0.0286822]
[1737817222516,3.981,251.23,251.22,0.0286822]
[1737817222817,1.3108,251.29,251.22,0.0286822]
[1737817223514,1.3814,251.3,251.22,0.0286822]
[1737817223915,9.89716659,251.34,251.22,0.0286822]
[1737817224113,1.3814,251.33,251.22,0.0286822]
[1737817224615,3.9804,251.27,251.22,0.0286822]
[1737817225017,1.3814,251.33,251.22,0.0286822]
[1737817225212,3.9806,251.26,251.22,0.0286822]
[1737817225408,1.3814,251.33,251.22,0.0286822]
[1737817225719,3.9798,251.31,251.23,3.9809]
[1737817226121,9.89716659,251.34,251.22,0.0286822]
[1737817227215,9.89716659,251.3,251.22,0.0286822]
[1737817227817,3.9804,251.27,251.22,0.0286822]
[1737817228120,9.89716659,251.3,251.22,0.0286822]
[1737817229120,3.9802,251.28,251.22,0.0286822]
[1737817229313,1.3561,251.36,251.22,0.0286822]
[1737817229513,11.18486659,251.42,251.26,9.89716659]
[1737817229912,1.2877,251.42,251.3,9.89716659]
[1737817230116,1.2877,251.42,251.31,4.00584053]
[1737817230415,1.2877,251.42,251.31,0.02614053]
[1737817230622,3.9788,251.37,251.31,0.02614053]
[1737817230920,9.89716659,251.4,251.31,0.02614053]
[1737817231120,3.9787,251.38,251.31,0.02614053]
[1737817231423,9.89716659,251.4,251.31,0.02614053]
[1737817231920,14.5646,251.46,251.31,0.02614053]
[1737817231921,9.89716659,251.44,251.31,0.02614053]
[1737817232217,3.9784,251.39,251.33,3.9793]
[1737817232421,2.5746,251.46,251.32,9.89716659]
[1737817232625,5.88291,251.47,251.32,9.89716659]
[1737817232921,3.9775,251.45,251.36,0.0262634]
[1737817233117,5.88291,251.47,251.36,0.0262634]
[1737817233318,3.9783,251.4,251.36,0.0262634]
[1737817233517,5.88291,251.47,251.36,0.0262634]
[1737817235128,9.86021,251.47,251.38,3.9785]
[1737817235328,9.86021,251.47,251.36,9.92342999]
[1737817235525,5.88291,251.47,251.36,9.92342999]
[1737817235922,5.88291,251.47,251.36,0.0262634]
[1737817236227,3.9763,251.53,251.44,9.89716659]
[1737817236528,9.89716659,251.6,251.44,9.89716659]
[1737817236724,3.976,251.55,251.48,3.9769]
[1737817237026,3.976,251.55,251.45,2.6485]
[1737817237027,9.89716659,251.6,251.45,2.6485]
[1737817237223,3.9758,251.56,251.49,4.00385023]
[1737817237429,9.89716659,251.6,251.49,0.02705023]
[1737817237625,15.79265729,251.57,251.49,0.02705023]
[1737817237827,0.73109579,251.56,251.4,3.9782]
[1737817238126,15.79265729,251.57,251.5,0.02638591]
[1737817238324,2.719,251.59,251.4,15.79265729]
[1737817238631,2.719,251.59,251.51,0.02842906]
[1737817238924,96.48,251.77,251.51,0.02842906]
[1737817238925,15.79265729,251.72,251.51,0.02842906]
[1737817239229,2.09185046,251.71,251.52,15.79265729]
[1737817239428,0.73085046,251.7,251.59,0.03046579]
[1737817239924,3.974,251.67,251.59,0.03046579]
[1737817240131,0.73085046,251.7,251.59,0.03046579]
[1737817240426,1.361,251.71,251.59,0.03046579]
[1737817241019,3.9739,251.68,251.59,4.00566579]
[1737817241228,1.361,251.71,251.59,0.03046579]
[1737817241429,17.15365729,251.71,251.59,0.03046579]
[1737817241629,3.975,251.61,251.59,0.03046579]
[1737817243331,15.79265729,251.63,251.45,79.07055577]
[1737817243521,15.79265729,251.6,251.45,79.07055577]
[1737817243724,15.79265729,251.68,251.49,15.79265729]
[1737817243931,0.73081784,251.67,251.5,1.2824]
[1737817244431,0.02680222,251.61,251.56,0.02638671]
[1737817245921,3.9753,251.59,251.56,0.02638671]
[1737817246123,0.02680222,251.61,251.56,0.02638671]
[1737817246530,3.9752,251.6,251.56,0.02638671]
[1737817246826,0.02680222,251.61,251.56,0.02638671]
[1737817247027,4.00180222,251.61,251.56,0.02638671]
[1737817247231,0.02680222,251.61,251.56,0.02638671]
[1737817247434,15.79265729,251.58,251.45,79.07055577]
[1737817247627,15.79265729,251.58,251.45,0.14698]
[1737817247825,15.79265729,251.54,251.45,0.14698]
[1737817248139,2.7122,251.53,251.45,0.14698]
[1737817248329,2.7122,251.53,251.32,142.47165423]
[1737817248531,2.7122,251.53,251.32,141.09065423]
[1737817248832,0.02593913,251.47,251.32,138.46125423]
[1737817249525,0.02593913,251.47,251.34,15.79265729]
[1737817250029,2.7122,251.53,251.34,15.79265729]
[1737817250230,0.02871863,251.43,251.4,3.9782]
[1737817250636,3.9764,251.52,251.4,3.9782]
[1737817250832,3.9764,251.52,251.34,15.79265729]
[1737817250833,0.0295773,251.44,251.39,0.02714926]
[1737817251334,0.0295773,251.44,251.4,3.9782]
[1737817251725,0.0295773,251.44,251.39,0.02714926]
[1737817251926,0.0295773,251.44,251.42,3.9779]
[1737817252733,1.3546,251.53,251.4,1.3353]
[1737817253029,1.3546,251.53,251.39,2.72954926]
[1737817253338,1.3546,251.53,251.39,0.02714926]
[1737817253529,0.73120817,251.52,251.39,0.02714926]
[1737817253925,0.0264385,251.48,251.39,0.02714926]
[1737817254938,0.0264385,251.48,251.43,3.9777]
[1737817255637,0.0264385,251.48,251.46,3.9772]
[1737817256933,1.3475,251.61,251.51,3.9764]
[1737817257435,0.73096826,251.6,251.43,3.9777]
[1737817257731,15.79265729,251.59,251.44,4.02752464]
[1737817257932,15.79265729,251.55,251.33,15.79265729]
[1737817258128,0.76056145,251.54,251.38,3.9785]
[1737817258330,0.73096826,251.54,251.39,4.02969521]
[1737817258528,3.9774,251.46,251.4,4.02969521]
[1737817258728,3.9774,251.46,251.41,4.02969521]
[1737817258937,15.79265729,251.55,251.33,15.79265729]
[1737817259129,15.79265729,251.55,251.34,4.03266422]
[1737817259440,0.02761296,251.47,251.41,0.02666965]
[1737817260130,3.9773,251.46,251.41,0.02666965]
[1737817260332,3.9773,251.46,251.42,4.03379733]